Cogmind - Beta 10.2 @@@ ROGUE MODE // 2021.10.29 @ 15:07:46 Player: Phaethon Result: Destroyed by P-70 Sage with High-powered Shock Rifle Performance ------------- Evolutions (6) 3000 Regions Visited (20) 4000 Robots Destroyed (261) 1305 Value Destroyed (8415) 8415 Prototype IDs (44) 880 Alien Tech Used (0) 0 Bonus (2013) 2013 TOTAL SCORE: 19613 Bonus ------- High Alert Combat Kills 785 Follower Combat Kills 305 Met Data Miner 300 Met Imprinter 300 Met Warlord at Base 500 MAIN.C Attacked Warlord 500 Friendly Fire -677 Cogmind --------- Core Integrity 0/1150 Matter 127/300 Energy 99/100 System Corruption 10% Temperature Cool (0) Movement Core (50) Location -4/Factory Parts ------- > --- POWER (1) -------- (None) > --- PROPULSION (2) --- (None) > --- UTILITY (14) ----- Experimental Optical Array Experimental Signal Interpreter Experimental Target Analyzer > --- WEAPON (2) ------- CR-A16's Pointy Stick > --- INVENTORY (4) ---- Micro Fission Core Force Rifle Force Rifle Vortex Rail Peak State ------------ > --- POWER ------------ Neutrino Core > --- PROPULSION ------- Armored Huge Wheel > --- UTILITY ---------- Advanced Cooling System Medium Storage Unit High-capacity Storage Unit Experimental Optical Array Experimental Sensor Array Experimental Signal Interpreter Experimental Target Analyzer Experimental Phase Shifter Hardened Heavy Armor Plating Advanced Hacking Suite Experimental Hacking Suite Makeshift System Shield Ghost Barrier > --- WEAPON ----------- Heavy Beamcaster Long-range Proton Cannon > --- INVENTORY -------- Micro Fission Core Light Antimatter Reactor Advanced Cooling System Advanced Cooling System Experimental Signal Interpreter Overload Amplifier Improved Medium Armor Plating Insulated Plating Mapping Drone Bay Improved Lightning Gun Particle Gun Vortex Rail Vortex Rail CR-A16's Pointy Stick [Rating: 115] Favorites ----------- Power Makeshift Power Source Engine Makeshift Power Source Power Core Micro Fission Core Propulsion Armored Huge Wheel Wheel Armored Huge Wheel Utility Advanced Hacking Suite Device Advanced Heat Sink Storage Large Storage Unit Processor Experimental Optical Array Hackware Advanced Hacking Suite Protection Improved Medium Armor Plating Weapon Heavy Plasma Cannon Energy Gun Gatling Laser Energy Cannon Heavy Plasma Cannon Ballistic Gun Heavy Assault Rifle Launcher Improved Proton Missile Launcher Impact Weapon Heavy Mace Piercing Weapon CR-A16's Pointy Stick Build | -11 -10 -10 -9 -9 -8 -7 -7 -7 -6 -6 -6 -6 -6 -5 -5 -5 -5 -5 -4 -4 ------- Run | Scr Mat Min Mat Sto Mat Fac Low Zio Pro Fac Low Low Dat Pro Fac Upp Upp War Pro Fac Slots Evolved 12 | . . . 2 . 2 2 . . . 2 . . . . 2 . . . . 2 Power . | . . . . . . . . . . . . . . . . . . . . . Propulsion . | . . . . . . . . . . . . . . . . . . . . . Utility 12 | . . . 2 . 2 2 . . . 2 . . . . 2 . . . . 2 Weapon . | . . . . . . . . . . . . . . . . . . . . . Parts Attached 353 | 7 15 4 51 17 45 45 15 6 5 31 10 2 4 10 49 . 2 8 . 27 Power 24 | 1 3 . 2 3 3 3 1 1 . 1 1 . . 1 3 . . 1 . . Engine 18 | 1 2 . 1 3 3 1 1 1 . 1 1 . . 1 2 . . . . . Core 6 | . 1 . 1 . . 2 . . . . . . . . 1 . . 1 . . Reactor . | . . . . . . . . . . . . . . . . . . . . . Propulsion 45 | 2 5 2 12 4 10 6 . . 1 1 . . . . 2 . . . . . Treads . | . . . . . . . . . . . . . . . . . . . . . Leg . | . . . . . . . . . . . . . . . . . . . . . Wheel 45 | 2 5 2 12 4 10 6 . . 1 1 . . . . 2 . . . . . Hover . | . . . . . . . . . . . . . . . . . . . . . Flight . | . . . . . . . . . . . . . . . . . . . . . Utility 151 | 2 2 . 12 3 15 21 8 4 3 22 5 1 . 1 31 . 1 5 . 15 Device 61 | . . . 1 . 2 9 4 . 3 9 2 1 . . 18 . 1 4 . 7 Storage 20 | 2 2 . 1 1 5 . 1 1 . 2 2 . . . 3 . . . . . Processor 7 | . . . . . . 1 1 1 . 1 . . . . 2 . . . . 1 Hackware 13 | . . . 1 . 2 4 . 2 . 1 . . . . 2 . . . . 1 Protection 50 | . . . 9 2 6 7 2 . . 9 1 . . 1 6 . . 1 . 6 Artifact . | . . . . . . . . . . . . . . . . . . . . . Weapon 133 | 2 5 2 25 7 17 15 6 1 1 7 4 1 4 8 13 . 1 2 . 12 Energy Gun 41 | . . . 11 4 3 1 1 1 1 2 . . 1 . 7 . . 2 . 7 Energy Cannon 35 | . . . 3 1 1 7 2 . . 4 2 1 2 5 3 . 1 . . 3 Ballistic Gun 35 | 2 3 2 8 1 12 3 1 . . 1 . . . . 2 . . . . . Ballistic Cannon . | . . . . . . . . . . . . . . . . . . . . . Launcher 17 | . 2 . 3 1 1 2 2 . . . 2 . 1 3 . . . . . . Special Weapon . | . . . . . . . . . . . . . . . . . . . . . Impact Weapon 1 | . . . . . . 1 . . . . . . . . . . . . . . Slashing Weapon . | . . . . . . . . . . . . . . . . . . . . . Piercing Weapon 4 | . . . . . . 1 . . . . . . . . 1 . . . . 2 Special Melee Weapon . | . . . . . . . . . . . . . . . . . . . . . Unidentified Prototypes 17 | . . . 1 1 2 1 . 2 . 3 . . . . 2 . . 3 . 2 Parts Lost 84 | . 2 . 12 5 14 8 1 . 2 4 4 . . 3 12 . . . . 17 Power 6 | . 1 . 1 . 1 . . . . . 1 . . 1 . . . . . 1 Propulsion 16 | . 1 . 3 2 5 2 . . 1 . . . . . 1 . . . . 1 Utility 38 | . . . 4 2 3 4 . . . 3 1 . . 1 7 . . . . 13 Weapon 24 | . . . 4 1 5 2 1 . 1 1 2 . . 1 4 . . . . 2 Highest Loss Streak 9 | . 2 . 8 1 7 3 1 . 1 3 4 . . 2 6 . . . . 9 Average Slot Usage (%) 90 | . 100 100 97 99 99 93 89 84 84 85 85 86 73 85 84 94 94 93 88 81 Engine 4 | . 7 . 2 9 9 4 1 7 7 6 6 6 6 6 1 . . . . . Core 2 | . 6 14 8 1 . 2 5 . . . . . . . 3 5 5 5 5 4 Wheel 10 | . 28 28 21 21 17 12 7 7 7 6 6 6 6 6 4 5 5 5 5 4 Device 9 | . . . . . 9 13 6 5 6 6 7 12 13 13 10 17 17 21 11 17 Storage 12 | . 28 28 22 22 22 15 12 8 7 6 5 6 6 6 6 11 11 11 11 9 Processor 9 | . . . . . . 3 7 8 15 13 13 13 13 13 12 23 22 17 17 15 Hackware 17 | . . . 9 11 12 15 23 23 23 25 26 26 26 22 21 17 17 17 17 9 Protection 5 | . . . 10 10 8 7 7 5 . 5 5 . . 3 8 . . . 5 8 Energy Gun 3 | . . . 7 5 2 . 3 9 15 2 2 . . . 1 5 1 . 5 4 Energy Cannon 4 | . . . 1 . 1 6 3 . . 10 6 12 . 10 8 . 3 5 5 3 Ballistic Gun 5 | . 27 23 12 16 14 7 3 4 . . . . . . . . . . . . Naked Turns . | . . . . . . . . . . . . . . . . . . . . . Heaviest Build 148 | 17 26 27 42 46 65 74 124 106 106 131 109 109 103 115 148 57 64 91 91 107 Greatest Support 32 | 26 26 26 32 26 26 32 28 28 28 28 28 28 28 28 28 28 28 28 28 28 Greatest Overweight (x) 5 | . 1 1 1 4 4 5 4 3 3 4 3 3 3 4 5 2 2 3 3 4 Average Overweight (x) 2 | . . . . 1 1 1 2 3 3 3 2 3 3 3 3 2 2 2 3 2 Largest Inventory Capacity 36 | 8 12 12 14 14 22 16 36 30 30 32 32 24 24 24 32 16 16 16 16 16 Average Capacity 18 | 5 10 12 12 14 17 16 18 25 24 24 19 24 24 24 23 16 16 16 16 15 Most Carried 28 | 6 12 12 14 14 16 16 19 28 28 24 24 24 24 24 24 16 16 16 16 16 Average Carried 17 | 3 10 11 12 13 14 15 16 22 24 22 17 23 24 22 21 15 16 15 16 12 Final Capacity 30 | 8 12 12 14 14 16 16 24 30 24 24 24 24 24 24 16 16 16 16 16 4 Final Carried 28 | 6 12 12 14 14 16 16 19 28 24 24 23 24 24 21 16 16 16 16 16 4 Class Distribution -------------------- 34% | Hacker-Mutant 24% | Hacker-Skirmisher 17% | Scavenger-Mutant 10% | Mutant 9% | Hacker-Assassin Dominant Class ---------------- Mutant | -10/Materials Mutant | -10/Mines Scavenger-Mutant | -9/Materials Scavenger-Mutant | -9/Storage Scavenger-Mutant | -8/Materials Hacker-Mutant | -7/Factory Hacker-Mutant | -7/Lower Caves Hacker-Mutant | -7/Zion Hacker-Skirmisher | -6/Proximity Caves Hacker-Mutant | -6/Factory Hacker-Skirmisher | -6/Lower Caves Hacker-Mutant | -6/Lower Caves Hacker-Mutant | -6/Data Miner Hacker-Skirmisher | -5/Proximity Caves Hacker-Skirmisher | -5/Factory Hacker-Assassin | -5/Upper Caves Hacker-Assassin | -5/Upper Caves Hacker-Assassin | -5/Warlord Hacker-Mutant | -4/Proximity Caves Mutant | -4/Factory Resources | -11 -10 -10 -9 -9 -8 -7 -7 -7 -6 -6 -6 -6 -6 -5 -5 -5 -5 -5 -4 -4 ----------- Run | Scr Mat Min Mat Sto Mat Fac Low Zio Pro Fac Low Low Dat Pro Fac Upp Upp War Pro Fac Matter Collected 6436 | 288 345 318 995 468 1339 785 219 60 60 264 182 54 . 260 495 60 25 159 . 60 Remotely . | . . . . . . . . . . . . . . . . . . . . . Salvage Created 10792 | 86 504 307 2145 920 1717 1356 194 . 234 458 619 93 . 368 1522 . . . . 269 Parts 591 | 3 36 17 170 69 87 72 10 . 11 20 17 7 . 14 51 . . . . 7 Haulers Intercepted 10 | . 2 . 2 3 3 . . . . . . . . . . . . . . . Recyclers Shooed 10 | . 1 1 1 . 3 1 . . . 1 . . . . 2 . . . . . Parts Field Recycled . | . . . . . . . . . . . . . . . . . . . . . Retrieved Matter . | . . . . . . . . . . . . . . . . . . . . . Parts Self-Destructed 74 | . . . . . . . 3 . 10 . . 4 . 12 . . . 45 . . Prevented 16 | . . . . . . . 3 . . . . 2 . . . . . 11 . . Kills | -11 -10 -10 -9 -9 -8 -7 -7 -7 -6 -6 -6 -6 -6 -5 -5 -5 -5 -5 -4 -4 ------- Run | Scr Mat Min Mat Sto Mat Fac Low Zio Pro Fac Low Low Dat Pro Fac Upp Upp War Pro Fac Combat Hostiles Destroyed 187 | . 11 4 44 20 23 23 5 . 5 6 8 4 . 12 18 . . . . 4 Guns 100 | . 11 4 33 13 21 8 1 . 4 . 1 . . . 2 . . . . 2 Cannons 46 | . . . 4 . . 15 . . . 5 2 . . 5 14 . . . . 1 AOE 33 | . . . 7 7 2 . 4 . . . 2 4 . 7 . . . . . . Classes Destroyed 15 | 1 6 . 4 . 1 1 . . . . 2 . . . . . . . . . Worker 19 | . 1 . 9 1 6 . . . . . . . . . 2 . . . . . Builder 4 | . . . 2 . . 1 . . . . . . . . 1 . . . . . Hauler 10 | . 2 . 2 3 3 . . . . . . . . . . . . . . . Recycler 15 | 1 . 2 2 . 3 4 . . . . . . . . 3 . . . . . Mechanic 2 | . . . 1 . . . . . . 1 . . . . . . . . . . Operator 11 | . 1 . 4 1 1 3 . . . . . . . . 1 . . . . . Watcher 12 | . 2 . 5 1 2 . . . . 1 . . . . 1 . . . . . Swarmer 41 | . 4 . 11 4 3 8 2 . . . . 4 . 5 . . . . . . Grunt 88 | . 7 4 24 12 11 10 1 . 1 3 . . . 6 7 . . . . 2 Brawler 4 | . . . . . 1 . 1 . . . . . . . 2 . . . . . Duelist 1 | . . . . . . . . . . . . . . 1 . . . . . . Protector 1 | . . . 1 . . . . . . . . . . . . . . . . . Sentry 29 | . . . 8 4 8 3 1 . 1 1 . . . . 3 . . . . . Programmer 15 | . . . . . . 2 . . 3 2 . . . . 6 . . . . 2 Thug 2 | . . . . . . . . . . . 2 . . . . . . . . . Savage 1 | . . . . . . . . . . . 1 . . . . . . . . . Butcher 4 | . . . . . . . . . . . 4 . . . . . . . . . Mutant 2 | . . . . . . . . . . . 2 . . . . . . . . . Best Kill Streak 15 | 1 5 3 15 8 8 4 4 . 2 2 2 4 . 4 5 . . . . 2 Combat Bots Only 11 | . 3 2 11 7 8 4 4 . 2 2 2 4 . 4 4 . . . . 2 Max Kills in Single Turn 4 | 1 2 1 3 4 2 1 2 . 1 1 1 4 . 3 2 . . . . 1 Gunslinging . | . . . . . . . . . . . . . . . . . . . . . Exploded 4 | . . . 2 3 2 . 2 . . . 1 4 . 3 . . . . . . Melee . | . . . . . . . . . . . . . . . . . . . . . Uniques/NPCs Destroyed . | . . . . . . . . . . . . . . . . . . . . . Combat | -11 -10 -10 -9 -9 -8 -7 -7 -7 -6 -6 -6 -6 -6 -5 -5 -5 -5 -5 -4 -4 -------- Run | Scr Mat Min Mat Sto Mat Fac Low Zio Pro Fac Low Low Dat Pro Fac Upp Upp War Pro Fac Damage Taken 15608 | . 432 158 1774 816 1753 2167 388 . 271 861 570 . . 381 2239 . 70 . . 3728 Core 2664 | . 54 47 226 115 237 226 97 . . 134 15 . . 61 259 . 25 . . 1168 Absorbed by Shields . | . . . . . . . . . . . . . . . . . . . . . Core Remaining (%) 61 | 100 . 59 . 14 56 . . . 53 . . . . 75 . . . . 71 . Volleys Fired 787 | 3 59 22 139 68 143 113 12 . 13 51 20 16 . 19 78 . 1 . . 30 Largest 2 | 2 2 2 2 2 2 2 2 . 2 2 2 2 . 2 2 . 1 . . 2 Hottest 190 | 40 40 50 124 79 100 100 105 . 160 180 190 143 . 190 190 . 81 . . 190 Shots Fired 1443 | 6 118 44 258 123 280 219 20 . 25 82 27 17 . 30 146 . 2 . . 46 Gun 1004 | 6 118 43 231 121 259 116 12 . 25 8 3 . . . 28 . . . . 34 Cannon 397 | . . . 20 . 18 101 3 . . 74 12 16 . 21 118 . 2 . . 12 Launcher 42 | . . 1 7 2 3 2 5 . . . 12 1 . 9 . . . . . . Special . | . . . . . . . . . . . . . . . . . . . . . Kinetic 766 | 6 118 43 155 101 214 116 7 . . . . . . . 6 . . . . . Thermal 628 | . . . 96 20 63 101 8 . 25 82 15 16 . 21 135 . . . . 46 Explosive 20 | . . 1 7 2 . 2 2 . . . . . . 6 . . . . . . Electromagnetic 29 | . . . . . 3 . 3 . . . 12 1 . 3 5 . 2 . . . Robot Hit Streak 26 | 4 21 8 12 16 26 16 14 . 12 9 9 . . 5 10 . . . . 10 Robot Miss Streak 6 | 1 3 2 5 4 3 6 2 . 1 4 3 . . 3 6 . . . . 3 Penetration Max . | . . . . . . . . . . . . . . . . . . . . . Secondary Targets 6 | . . . 3 2 1 . . . . . . . . . . . . . . . Max Gunslinging Chain 1 | . . . 1 1 1 . . . . . . . . . . . . . . . Shots Hit Robots 907 | 5 68 33 153 77 198 138 15 . 23 37 15 . . 13 95 . . . . 37 Core Hits 442 | 2 28 13 104 38 62 51 12 . 9 12 19 4 . 27 51 . . . . 10 Critical Hits 20 | . 1 . 1 . 2 1 . . . 2 1 . . . 6 . . . . 6 Critical Kills 7 | . . . . . 1 . . . . . . . . . 3 . . . . 3 Critical Parts Destroyed 12 | . 1 . 1 . 1 1 . . . 2 1 . . . 2 . . . . 3 Melee Attacks 39 | . . . . . . 4 . . . . . . . . 2 . 5 . . 28 Impact 1 | . . . . . . 1 . . . . . . . . . . . . . . Slashing . | . . . . . . . . . . . . . . . . . . . . . Piercing 38 | . . . . . . 3 . . . . . . . . 2 . 5 . . 28 Sneak Attacks . | . . . . . . . . . . . . . . . . . . . . . Combat Hostiles . | . . . . . . . . . . . . . . . . . . . . . Follow-up Attacks . | . . . . . . . . . . . . . . . . . . . . . Damage Inflicted 23512 | 61 840 438 3665 1618 3504 2871 611 . 384 1348 1138 155 . 1522 4213 . . . . 1144 Guns 10745 | 61 840 406 2137 1298 2999 1131 222 . 384 111 72 . . . 531 . . . . 553 Cannons 7668 | . . . 358 . 250 1699 75 . . 1237 404 . . 551 2931 . . . . 163 Explosions 4670 | . . 32 1170 320 254 41 314 . . . 662 155 . 971 751 . . . . . Melee 428 | . . . . . . . . . . . . . . . . . . . . 428 Ramming 1 | . . . . . 1 . . . . . . . . . . . . . . . Kinetic 7221 | 61 840 406 1213 1056 2339 1131 93 . . . . . . . 82 . . . . . Thermal 12272 | . . . 1597 242 910 1699 260 . 384 1348 476 58 . 551 4031 . . . . 716 Explosive 2137 | . . 32 660 320 . 41 193 . . . . . . 891 . . . . . . Electromagnetic 1453 | . . . 195 . 254 . 65 . . . 662 97 . 80 100 . . . . . Impact . | . . . . . . . . . . . . . . . . . . . . . Slashing . | . . . . . . . . . . . . . . . . . . . . . Piercing 428 | . . . . . . . . . . . . . . . . . . . . 428 Highest Corruption 9 | . . . . 1 . . . . 3 . 3 3 3 3 9 9 9 9 . 9 Average Corruption 4 | . . . . 1 . . . . 2 . 2 3 3 3 5 9 9 9 . 5 Corruption Purged . | . . . . . . . . . . . . . . . . . . . . . Effects 149 | . . . . 3 . . . . 9 . 8 15 2 13 45 9 24 2 . 19 Message Errors 31 | . . . . . . . . . 1 . 5 4 1 5 6 2 5 . . 2 Matter Fused 39 | . . . . . . . . . 2 . 1 4 1 3 8 2 12 . . 6 Heat Flow Errors 21 | . . . . . . . . . 5 . 1 2 . . 7 1 1 1 . 3 Energy Discharges 15 | . . . . . . . . . . . . 1 . 1 8 3 2 . . . Parts Rejected 1 | . . . . . . . . . . . . . . . . . . . . 1 Data Loss (minor) 19 | . . . . . . . . . 1 . 1 3 . 4 6 1 1 1 . 1 Data Loss (major) 5 | . . . . . . . . . . . . . . . 3 . 1 . . 1 Misfires 2 | . . . . . . . . . . . . . . . 1 . 1 . . . Targeting Errors 14 | . . . . 2 . . . . . . . 1 . . 5 . 1 . . 5 Weapon Failures 2 | . . . . 1 . . . . . . . . . . 1 . . . . . Overload Shots . | . . . . . . . . . . . . . . . . . . . . . Overflow Damage 712 | . . . 63 . 17 42 . . . 26 5 2 . 46 511 . . . . . Projectiles 225 | . . . . . 17 42 . . . 26 . . . 46 94 . . . . . Explosions 487 | . . . 63 . . . . . . . 5 2 . . 417 . . . . . Melee . | . . . . . . . . . . . . . . . . . . . . . Knockbacks . | . . . . . . . . . . . . . . . . . . . . . Impact . | . . . . . . . . . . . . . . . . . . . . . Kinetic . | . . . . . . . . . . . . . . . . . . . . . Secondary . | . . . . . . . . . . . . . . . . . . . . . Self-Inflicted Damage 509 | . . . 70 144 . . . . . . 71 . . 25 199 . . . . . Shots 15 | . . . 3 2 . . . . . . 7 . . 1 2 . . . . . Rammed 1 | . . . . . 1 . . . . . . . . . . . . . . . Targets Rammed 1 | . . . . . 1 . . . . . . . . . . . . . . . Kicked . | . . . . . . . . . . . . . . . . . . . . . Crushed . | . . . . . . . . . . . . . . . . . . . . . Highest Temperature 360 | . 12 6 328 239 306 243 61 . 259 336 286 144 . 155 360 83 125 37 . 326 Average Temperature 72 | . 3 2 69 52 76 48 25 . 115 63 98 98 . 57 108 42 84 37 . 120 Received Heat Transfer 4122 | . 171 90 654 309 693 660 54 . 6 309 63 . . 126 525 . . . . 462 Effects 10 | . . . 1 1 2 3 . . 3 . . . . . . . . . . . Energy Bleed 2 | . . . 1 . . . . . 1 . . . . . . . . . . . Interference 8 | . . . . 1 2 3 . . 2 . . . . . . . . . . . Siege Activations . | . . . . . . . . . . . . . . . . . . . . . Robots Corrupted 4 | . . . . . . . . . . . 3 . . . 1 . . . . . Combat Hostiles 4 | . . . . . . . . . . . 3 . . . 1 . . . . . Parts Fried 7 | . . . 1 . 1 . . . . . 4 . . . 1 . . . . . Impact Corruptions . | . . . . . . . . . . . . . . . . . . . . . Robots Melted 4 | . . . . . . . . . 1 1 . . . . 1 . . . . 1 Combat Hostiles 4 | . . . . . . . . . 1 1 . . . . 1 . . . . 1 Parts Melted 37 | . . . 1 . 1 3 . . 4 4 2 . . . 14 . . . . 8 Heat Transferred 17805 | . . . 3112 518 1776 2479 461 . 723 1948 661 100 . 775 4375 . . . . 877 Parts Sabotaged . | . . . . . . . . . . . . . . . . . . . . . Parts Stolen . | . . . . . . . . . . . . . . . . . . . . . Parts Stripped . | . . . . . . . . . . . . . . . . . . . . . Power Chain Reactions 4 | . . . 2 . . . 1 . . . . 1 . . . . . . . . Missiles Intercepted . | . . . . . . . . . . . . . . . . . . . . . Alert | -11 -10 -10 -9 -9 -8 -7 -7 -7 -6 -6 -6 -6 -6 -5 -5 -5 -5 -5 -4 -4 ------- Run | Scr Mat Min Mat Sto Mat Fac Low Zio Pro Fac Low Low Dat Pro Fac Upp Upp War Pro Fac Peak Influence 826 | 5 352 219 826 820 744 673 . . . 166 . . . . 792 . . . . 84 Initial 282 | . 3 94 7 209 282 227 . . . . . . . . 49 . . . . . Average 289 | 1 186 106 366 500 492 309 . . . 36 . . . . 388 . . . . 26 Maximum Alert Level 3 | . 1 1 3 3 3 2 . . . . . . . . 3 . . . . . Low Security (%) 41 | 100 59 86 17 . . 20 . . . 100 . . . . 36 . . . . 100 Level 1 23 | . 40 13 40 26 25 56 . . . . . . . . 1 . . . . . Level 2 31 | . . . 37 65 67 23 . . . . . . . . 54 . . . . . Level 3 3 | . . . 4 8 6 . . . . . . . . . 7 . . . . . Level 4 . | . . . . . . . . . . . . . . . . . . . . . Level 5 . | . . . . . . . . . . . . . . . . . . . . . High Security . | . . . . . . . . . . . . . . . . . . . . . Max Security . | . . . . . . . . . . . . . . . . . . . . . Squads Dispatched 53 | . 3 . 8 11 4 7 . . . 8 . . . . 5 . . . . 7 Investigation 15 | . 3 . 3 3 1 1 . . . 2 . . . . 1 . . . . 1 Extermination 11 | . . . . . . 3 . . . 3 . . . . 4 . . . . 1 Reinforcement 17 | . . . 3 4 3 2 . . . 3 . . . . . . . . . 2 Assault 3 | . . . 2 1 . . . . . . . . . . . . . . . . Garrison 7 | . . . . 3 . 1 . . . . . . . . . . . . . 3 Intercept . | . . . . . . . . . . . . . . . . . . . . . Construction Impeded 4 | . . . 1 1 . . . . . 1 . . . . . . . . . 1 Haulers Reinforced . | . . . . . . . . . . . . . . . . . . . . . Stealth | -11 -10 -10 -9 -9 -8 -7 -7 -7 -6 -6 -6 -6 -6 -5 -5 -5 -5 -5 -4 -4 --------- Run | Scr Mat Min Mat Sto Mat Fac Low Zio Pro Fac Low Low Dat Pro Fac Upp Upp War Pro Fac Distress Signals 11 | . . . 3 2 3 1 . . . 1 . . . . 1 . . . . . Communications Jammed . | . . . . . . . . . . . . . . . . . . . . . Distress Signals . | . . . . . . . . . . . . . . . . . . . . . Times Spotted 324 | . 18 5 71 34 47 41 4 . 4 16 10 . . 11 34 . 1 15 . 13 Peak Tracking Total 9 | . 4 2 7 8 9 5 5 . 2 4 7 . . 5 5 . 1 5 . 5 Tactical Retreats 29 | . 1 . 5 2 7 4 . . . . 2 . . 1 4 . 1 . . 2 Traps | -11 -10 -10 -9 -9 -8 -7 -7 -7 -6 -6 -6 -6 -6 -5 -5 -5 -5 -5 -4 -4 ------- Run | Scr Mat Min Mat Sto Mat Fac Low Zio Pro Fac Low Low Dat Pro Fac Upp Upp War Pro Fac Traps Triggered 11 | . 2 . 1 1 2 1 . . . 2 . . . . 2 . . . . . Indirectly . | . . . . . . . . . . . . . . . . . . . . . Trap Hack Attempts . | . . . . . . . . . . . . . . . . . . . . . Triggered . | . . . . . . . . . . . . . . . . . . . . . Disarmed . | . . . . . . . . . . . . . . . . . . . . . Reprogrammed . | . . . . . . . . . . . . . . . . . . . . . Reused . | . . . . . . . . . . . . . . . . . . . . . Traps Extracted . | . . . . . . . . . . . . . . . . . . . . . Installed . | . . . . . . . . . . . . . . . . . . . . . Triggered 10 | . . . . . . . . . 1 . . . . . . 2 . 7 . . Machines | -11 -10 -10 -9 -9 -8 -7 -7 -7 -6 -6 -6 -6 -6 -5 -5 -5 -5 -5 -4 -4 ---------- Run | Scr Mat Min Mat Sto Mat Fac Low Zio Pro Fac Low Low Dat Pro Fac Upp Upp War Pro Fac Machines Disabled 23 | . 2 2 4 2 . 2 . . . 3 . . . . 8 . . . . . Max in Single Turn 5 | . 2 1 2 2 . 1 . . . 1 . . . . 5 . . . . . Garrison Access 3 | . . . . . . 1 . . . . . . . . 2 . . . . . Machines Sabotaged . | . . . . . . . . . . . . . . . . . . . . . Garrisons Compromised . | . . . . . . . . . . . . . . . . . . . . . Overloaded Fab Kills . | . . . . . . . . . . . . . . . . . . . . . Fab Network Shutdowns 2 | . . . . . . 1 . . . . . . . . 1 . . . . . Hacking | -11 -10 -10 -9 -9 -8 -7 -7 -7 -6 -6 -6 -6 -6 -5 -5 -5 -5 -5 -4 -4 --------- Run | Scr Mat Min Mat Sto Mat Fac Low Zio Pro Fac Low Low Dat Pro Fac Upp Upp War Pro Fac Machines Accessed 85 | . 6 . 15 6 7 12 1 . . 10 . . 4 . 10 . . 12 . 2 Terminals 46 | . 5 . 10 5 6 8 . . . 7 . . . . 3 . . . . 2 Fabricators 4 | . . . . . . 1 . . . . . . . . 3 . . . . . Repair Stations 5 | . . . 2 . 1 . . . . 1 . . . . 1 . . . . . Recycling Units 6 | . 1 . 2 1 . 1 . . . . . . . . 1 . . . . . Scanalyzers 4 | . . . 1 . . 1 . . . 2 . . . . . . . . . . Garrison Access 3 | . . . . . . 1 . . . . . . . . 2 . . . . . Total Hacks 291 | . 19 . 49 19 32 51 1 . . 40 . . 25 . 28 . . 19 . 8 Successful 209 | . 10 . 32 11 17 37 1 . . 32 . . 25 . 20 . . 19 . 5 Failed 80 | . 8 . 17 7 15 14 . . . 8 . . . . 8 . . . . 3 Catastrophic 6 | . . . 1 1 2 1 . . . 1 . . . . . . . . . . Database Lockouts 2 | . 1 . . 1 . . . . . . . . . . . . . . . . Manual 122 | . 16 . 28 11 26 15 . . . 13 . . . . 7 . . 1 . 5 Terminals 187 | . 17 . 37 17 30 39 . . . 25 . . . . 14 . . . . 8 Fabricators 13 | . . . . . . 4 . . . . . . . . 9 . . . . . Repair Stations 13 | . . . 4 . 2 . . . . 5 . . . . 2 . . . . . Recycling Units 13 | . 2 . 5 2 . 3 . . . . . . . . 1 . . . . . Scanalyzers 17 | . . . 3 . . 4 . . . 10 . . . . . . . . . . Garrison Access 3 | . . . . . . 1 . . . . . . . . 2 . . . . . Terminal Hacks 124 | . 3 . 15 6 10 23 1 . . 12 . . 25 . 7 . . 19 . 3 Record 33 | . . . . . . 3 . . . . . . 11 . 1 . . 18 . . Part Schematic 11 | . . . . 1 . 3 . . . . . . 5 . 2 . . . . . Robot Schematic 7 | . . . . . . . . . . 1 . . 6 . . . . . . . Robot Analysis 8 | . 1 . 3 . 1 1 . . . 2 . . . . . . . . . . Prototype ID Bank 10 | . 1 . 1 . . 2 . . . 2 . . 3 . . . . . . 1 Open Door 4 | . . . . 2 . . 1 . . . . . . . . . . 1 . . Level Access Points 1 | . . . . . . . . . . 1 . . . . . . . . . . Branch Access Points 3 | . . . 1 . 1 1 . . . . . . . . . . . . . . Machine Index 1 | . . . . . . . . . . 1 . . . . . . . . . . Terminal Index 2 | . . . . . 1 . . . . . . . . . . . . . . 1 Fabricator Index 3 | . . . . . 1 1 . . . . . . . . 1 . . . . . Alert Level 15 | . . . 5 . 2 5 . . . 2 . . . . 1 . . . . . Unreport Threat 11 | . . . 4 2 1 3 . . . 1 . . . . . . . . . . Locate Traps 2 | . . . . . 1 . . . . 1 . . . . . . . . . . Dispatch Records 1 | . . . . . . . . . . . . . . . . . . . . 1 Reinforcement Status 1 | . . . 1 . . . . . . . . . . . . . . . . . Recall Investigation 1 | . . . . . . 1 . . . . . . . . . . . . . . Recall Extermination 2 | . . . . . . 1 . . . 1 . . . . . . . . . . Recall Reinforcements 1 | . . . . . 1 . . . . . . . . . . . . . . . Hauler Manifests 3 | . . . . . 1 1 . . . . . . . . 1 . . . . . Registered Components 1 | . 1 . . . . . . . . . . . . . . . . . . . Zone Layout 3 | . . . . 1 . 1 . . . . . . . . 1 . . . . . Fabricator Hacks 10 | . . . . . . 4 . . . . . . . . 6 . . . . . Load Schematic 3 | . . . . . . 1 . . . . . . . . 2 . . . . . Build 7 | . . . . . . 3 . . . . . . . . 4 . . . . . Repair Station Hacks 13 | . . . 4 . 2 . . . . 5 . . . . 2 . . . . . Scan Component 7 | . . . 2 . 1 . . . . 3 . . . . 1 . . . . . Repair 6 | . . . 2 . 1 . . . . 2 . . . . 1 . . . . . Recycling Unit Hacks 6 | . 1 . 2 1 . 2 . . . . . . . . . . . . . . Report Inventory 5 | . 1 . 2 1 . 1 . . . . . . . . . . . . . . Retrieve Components 1 | . . . . . . 1 . . . . . . . . . . . . . . Scanalyzer 14 | . . . 2 . . 4 . . . 8 . . . . . . . . . . Insert Component 8 | . . . 1 . . 2 . . . 5 . . . . . . . . . . Analyze 6 | . . . 1 . . 2 . . . 3 . . . . . . . . . . Garrison Access Hacks 3 | . . . . . . 1 . . . . . . . . 2 . . . . . Seal Access 3 | . . . . . . 1 . . . . . . . . 2 . . . . . Unauthorized Hacks 39 | . 6 . 9 4 5 3 . . . 7 . . . . 3 . . . . 2 Terminals 34 | . 5 . 7 3 5 3 . . . 7 . . . . 2 . . . . 2 Track 1 | . . . . . 1 . . . . . . . . . . . . . . . Assimilate 12 | . 1 . 4 . . 1 . . . 3 . . . . 1 . . . . 2 Botnet 16 | . 3 . 2 2 3 1 . . . 4 . . . . 1 . . . . . Operators 5 | . 1 . 1 1 1 1 . . . . . . . . . . . . . . Fabricators . | . . . . . . . . . . . . . . . . . . . . . Repair Stations . | . . . . . . . . . . . . . . . . . . . . . Recycling Units 5 | . 1 . 2 1 . . . . . . . . . . 1 . . . . . Tunnel 5 | . 1 . 2 1 . . . . . . . . . . 1 . . . . . Scanalyzers . | . . . . . . . . . . . . . . . . . . . . . Garrison Access . | . . . . . . . . . . . . . . . . . . . . . Data Cores Recovered . | . . . . . . . . . . . . . . . . . . . . . Used . | . . . . . . . . . . . . . . . . . . . . . Hacking Detections 53 | . 6 . 12 4 4 11 . . . 9 . . . . 5 . . . . 2 Full Trace Events 5 | . 1 . 1 1 . 1 . . . . . . . . . . . . . 1 Feedback Events 1 | . . . . . . . . . . . . . . . . . . . . 1 Hackware Fried 1 | . . . . . . . . . . . . . . . . . . . . 1 Feedback Blocked . | . . . . . . . . . . . . . . . . . . . . . Robot Schematics Acquired 7 | . . . . . . . . . . 1 . . 6 . . . . . . . Robots Built . | . . . . . . . . . . . . . . . . . . . . . Matter . | . . . . . . . . . . . . . . . . . . . . . Time . | . . . . . . . . . . . . . . . . . . . . . Total Robot Build Rating . | . . . . . . . . . . . . . . . . . . . . . Part Schematics Acquired 16 | . . . 1 1 . 4 . . . 3 . . 5 . 2 . . . . . Parts Built 5 | . . . . . . 3 . . . . . . . . 2 . . . . . Matter 1206 | . . . . . . 636 . . . . . . . . 570 . . . . . Time 257 | . . . . . . 105 . . . . . . . . 152 . . . . . Total Part Build Rating 28 | . . . . . . 18 . . . . . . . . 10 . . . . . Parts Repaired 6 | . . . 2 . 1 . . . . 2 . . . . 1 . . . . . Time 248 | . . . 112 . 26 . . . . 88 . . . . 22 . . . . . Parts Recycled . | . . . . . . . . . . . . . . . . . . . . . Recycled Matter . | . . . . . . . . . . . . . . . . . . . . . Retrieved Matter . | . . . . . . . . . . . . . . . . . . . . . Retrieved Components 3 | . . . . . . 3 . . . . . . . . . . . . . . Parts Scanalyzed 6 | . . . 1 . . 2 . . . 3 . . . . . . . . . . Part Schematics Acquired 5 | . . . 1 . . 1 . . . 3 . . . . . . . . . . Parts Damaged . | . . . . . . . . . . . . . . . . . . . . . Bothacking | -11 -10 -10 -9 -9 -8 -7 -7 -7 -6 -6 -6 -6 -6 -5 -5 -5 -5 -5 -4 -4 ------------ Run | Scr Mat Min Mat Sto Mat Fac Low Zio Pro Fac Low Low Dat Pro Fac Upp Upp War Pro Fac Used RIF Installer . | . . . . . . . . . . . . . . . . . . . . . Robots Hacked . | . . . . . . . . . . . . . . . . . . . . . Non-combat . | . . . . . . . . . . . . . . . . . . . . . Combat . | . . . . . . . . . . . . . . . . . . . . . Robot Hacks Applied . | . . . . . . . . . . . . . . . . . . . . . Relay Couplers Released . | . . . . . . . . . . . . . . . . . . . . . Robots Rewired 8 | . . . . . . . 1 . . . 3 . . . . . . 4 . . Allies Hacked . | . . . . . . . . . . . . . . . . . . . . . Hacks Repelled 1 | . . . . . . . . . 1 . . . . . . . . . . . Allies | -11 -10 -10 -9 -9 -8 -7 -7 -7 -6 -6 -6 -6 -6 -5 -5 -5 -5 -5 -4 -4 -------- Run | Scr Mat Min Mat Sto Mat Fac Low Zio Pro Fac Low Low Dat Pro Fac Upp Upp War Pro Fac Total Allies 27 | . . . 2 10 . 1 1 . . 3 3 . . 1 1 . . 4 . 1 Largest Group 10 | . . . 1 10 . 1 1 1 1 2 3 . . 1 1 . . 4 4 1 Highest-Rated Group 196 | . . . 10 88 . 10 16 16 16 52 60 . . 94 26 . . 196 196 26 Highest-Rated Ally 94 | . . . 10 16 . 10 16 16 16 26 20 . . 94 26 . . 60 60 26 Total Orders 5 | . . . . . . . . . . . . . . . . . . . 1 4 STAY 2 | . . . . . . . . . . . . . . . . . . . 1 1 RETURN 3 | . . . . . . . . . . . . . . . . . . . . 3 Ally Attacks 99 | . . . . 76 . . . . 7 . 2 . . 5 . . . 9 . . Total Damage 1365 | . . . . 839 . . . . 110 . 26 . . 93 . . . 297 . . Kills 14 | . . . . 13 . . . . . . . . . . . . . 1 . . Allies Corrupted 1 | . . . . . . . . . . 1 . . . . . . . . . . Allies Melted . | . . . . . . . . . . . . . . . . . . . . . Intel | -11 -10 -10 -9 -9 -8 -7 -7 -7 -6 -6 -6 -6 -6 -5 -5 -5 -5 -5 -4 -4 ------- Run | Scr Mat Min Mat Sto Mat Fac Low Zio Pro Fac Low Low Dat Pro Fac Upp Upp War Pro Fac Robot Analysis Total 8 | . 1 . 3 . 1 1 . . . 2 . . . . . . . . . . Derelict Logs Recovered 17 | . . 2 . . . . 3 2 2 . 2 1 . 2 . 1 1 . 1 . Drone Launches 3 | . . . . . . . . . . . . . . . . . . . . 3 Drone Recoveries 3 | . . . . . . . . . . . . . . . . . . . . 3 Exploration | -11 -10 -10 -9 -9 -8 -7 -7 -7 -6 -6 -6 -6 -6 -5 -5 -5 -5 -5 -4 -4 ------------- Run | Scr Mat Min Mat Sto Mat Fac Low Zio Pro Fac Low Low Dat Pro Fac Upp Upp War Pro Fac Turns Passed 19674 | 69 699 541 1651 625 1470 2239 661 1359 519 1996 880 716 123 925 2400 276 881 762 318 564 Spaces Moved 12293 | 50 467 491 982 324 783 1460 482 1011 325 1213 624 515 89 600 1234 197 407 581 224 234 Core 8 | 3 . . . . . . . . . . . . . . . . . . . 5 Treads . | . . . . . . . . . . . . . . . . . . . . . Legs . | . . . . . . . . . . . . . . . . . . . . . Wheels 12285 | 47 467 491 982 324 783 1460 482 1011 325 1213 624 515 89 600 1234 197 407 581 224 229 Hover . | . . . . . . . . . . . . . . . . . . . . . Flight . | . . . . . . . . . . . . . . . . . . . . . Fastest Speed 50 | 50 90 90 90 90 100 100 110 130 130 120 100 130 130 130 100 120 120 120 130 50 Average Speed 119 | 88 90 90 98 98 102 115 121 130 130 130 123 130 130 135 137 120 120 120 130 128 Slowest Speed 250 | 100 90 90 100 120 120 130 140 130 130 140 130 130 130 140 150 120 120 130 130 250 Overloaded Moves . | . . . . . . . . . . . . . . . . . . . . . Propulsion Burnouts . | . . . . . . . . . . . . . . . . . . . . . Robots Hopped . | . . . . . . . . . . . . . . . . . . . . . Cave-ins Triggered . | . . . . . . . . . . . . . . . . . . . . . Exploration Rate (%) 57 | 3 76 98 84 61 62 38 65 85 53 41 58 64 74 64 31 34 57 91 54 8 Regions Visited 20 Branch Regions 13 Pre-discovered Areas 12 | . 1 . 2 1 . . 1 2 . . . . 1 . 1 1 . 2 . . Known Exits Taken 16 | . . . 1 1 . 1 1 1 1 1 1 1 1 1 1 1 1 1 1 . Unknown Exits Taken 4 | 1 1 1 . . 1 . . . . . . . . . . . . . . . Scrap Searched 14 | . . 1 . . . . 2 4 . . 1 1 . 1 . 1 2 . 1 . Spaces Dug 119 | . . . 11 . 5 2 . . . 20 . 22 . 36 9 . 5 . . 9 Terrain Destroyed 419 | . 23 7 60 36 6 20 25 . . 28 1 23 . 106 70 . 5 . . 9 Melee 10 | . . . . . . 2 . . . . . . . . 2 . 5 . . 1 Projectile 89 | . . . . . 6 . . . . 28 1 15 . 3 28 . . . . 8 AOE 320 | . 23 7 60 36 . 18 25 . . . . 8 . 103 40 . . . . . Terrain Rammed . | . . . . . . . . . . . . . . . . . . . . . Walls Destroyed . | . . . . . . . . . . . . . . . . . . . . . Machines Disabled . | . . . . . . . . . . . . . . . . . . . . . Actions | -11 -10 -10 -9 -9 -8 -7 -7 -7 -6 -6 -6 -6 -6 -5 -5 -5 -5 -5 -4 -4 --------- Run | Scr Mat Min Mat Sto Mat Fac Low Zio Pro Fac Low Low Dat Pro Fac Upp Upp War Pro Fac Total 15868 | 65 637 547 1420 510 1207 1847 537 1059 393 1552 699 543 96 675 1765 237 788 647 251 393 Wait 1911 | . 61 22 195 81 185 160 8 17 46 206 10 8 . 47 355 37 373 15 26 59 Move 12274 | 49 466 490 981 323 783 1459 481 1010 324 1212 623 514 88 599 1233 196 406 580 223 234 Hop . | . . . . . . . . . . . . . . . . . . . . . Pick Up 214 | 6 18 3 22 5 24 28 3 15 2 24 18 2 1 . 29 2 . 7 1 4 Fast Attach 101 | 7 2 1 14 7 9 10 4 4 . 8 6 . 2 . 14 . 1 5 . 7 Attach 90 | . 2 . 13 3 16 11 3 . 2 12 1 . . 3 14 . . 1 . 9 Detach 21 | . . . 2 1 . 1 2 1 . 2 1 . . . 7 . . 2 . 2 Swap 162 | . 11 3 24 7 20 24 8 2 3 11 3 2 2 7 21 . 1 2 . 11 Drop 218 | . 18 6 30 12 27 37 4 10 3 26 2 1 3 . 12 2 1 14 1 9 Fire 787 | 3 59 22 139 68 143 113 12 . 13 51 20 16 . 19 78 . 1 . . 30 Melee 39 | . . . . . . 4 . . . . . . . . 2 . 5 . . 28 Ram . | . . . . . . . . . . . . . . . . . . . . . Kick . | . . . . . . . . . . . . . . . . . . . . . Crush . | . . . . . . . . . . . . . . . . . . . . . Escape Stasis . | . . . . . . . . . . . . . . . . . . . . . Rewire 51 | . . . . 3 . . 12 . . . 15 . . . . . . 21 . . Trap . | . . . . . . . . . . . . . . . . . . . . . Miscellaneous . | . . . . . . . . . . . . . . . . . . . . . Route ------- -11/Scrapyard -10/Materials (discovered 3 exits: *Mat x2 / [*Min]) -10/Mines (discovered 2 exits: *Mat x2) -9/Materials (discovered 6 exits: *Mat x3 / *Min / *Sto x2) -9/Storage -8/Materials (discovered 2 exits: *Fac x2) -7/Factory (discovered 5 exits: *Fac x3 / *Low x2) -7/Lower Caves (discovered 2 exits: *Low / *Zio) -7/Zion -6/Proximity Caves -6/Factory (discovered 6 exits: *Fac x4 / *Low / Ext) -6/Lower Caves -6/Lower Caves -6/Data Miner -5/Proximity Caves -5/Factory (discovered 3 exits: *Fac x2 / *Upp) -5/Upper Caves -5/Upper Caves -5/Warlord -4/Proximity Caves -4/Factory History --------- Turn | Location | Event 8 | -11/Scrapyard | Discovered new exit (range 15) 70 | -11/Scrapyard | Entered Materials 309 | -10/Materials | Build established: Mutant 386 | -10/Materials | Discovered new exit (range 16) 543 | -10/Materials | Discovered new exit (range 16) 726 | -10/Materials | Central database locked down 742 | -10/Materials | Discovered new exit (range 7) 769 | -10/Materials | Entered Mines 837 | -10/Mines | Joined a pair of Derelicts in attacking an 0b10 outpost 925 | -10/Mines | Found a damaged Exp. Sensor Array with a note attached 927 | -10/Mines | Found Prototype Device 943 | -10/Mines | Discovered new exit (range 7) 1057 | -10/Mines | Learned 2 Materials zone layouts 1110 | -10/Mines | Learned location of 1 exit from Materials 1168 | -10/Mines | Discovered new exit (range 5) 1310 | -10/Mines | Entered Materials 1310 | -9/Materials | Evolved 2 slots: Utility x2 1311 | -9/Materials | Identified exit to Materials 1312 | -9/Materials | Identified exit to Storage 1363 | -9/Materials | Build established: Scavenger-Mutant 1762 | -9/Materials | Discovered new exit (range 15) 1994 | -9/Materials | Lost 8 parts (1p2n2u3w) 2059 | -9/Materials | Discovered exit to Storage (range 5) 2084 | -9/Materials | Repaired Med. Armor Plating? 2110 | -9/Materials | First assault squad dispatched 2251 | -9/Materials | Destroyed 11 combat bots 2299 | -9/Materials | Identified exit to Mines 2410 | -9/Materials | Identified Exp. Sensor Array 2448 | -9/Materials | Discovered exit to Materials (range 16) 2469 | -9/Materials | Core integrity fell below 50% 2562 | -9/Materials | Repaired Exp. Sensor Array 2852 | -9/Materials | Discovered exit to Materials (range 16) 2961 | -9/Materials | Entered Storage 3074 | -9/Storage | Central database locked down 3084 | -9/Storage | Destroyed 7 combat bots 3227 | -9/Storage | Assisted by bots powering up and referring to "LRC-V3" 3322 | -9/Storage | Garrison activated, responded to threat 3361 | -9/Storage | First assault squad dispatched 3484 | -9/Storage | Garrison activated, responded to threat 3490 | -9/Storage | Core integrity fell below 20% 3510 | -9/Storage | Discovered exit to Materials (range 16) 3586 | -9/Storage | Entered Materials 3586 | -8/Materials | Evolved 2 slots: Utility x2 3795 | -8/Materials | Repaired Lgt. Armor Plating 4028 | -8/Materials | Destroyed 8 combat bots 4035 | -8/Materials | Lost 7 parts (1p3n2u1w) 4266 | -8/Materials | Build established: Hauler-Mutant 4355 | -8/Materials | Discovered new exit (range 16) 4614 | -8/Materials | Build established: Scavenger-Mutant 4794 | -8/Materials | Discovered new exit (range 16) 5056 | -8/Materials | Entered Factory 5056 | -7/Factory | Evolved 2 slots: Utility x2 5132 | -7/Factory | Discovered new exit (range 15) 5493 | -7/Factory | Lost 3 parts (1n2u) 5934 | -7/Factory | Garrison activated, responded to threat 5941 | -7/Factory | Build established: Mutant 6080 | -7/Factory | Discovered new exit (range 8) 6333 | -7/Factory | Identified exit to Lower Caves 6620 | -7/Factory | Build established: Hacker-Mutant 6646 | -7/Factory | Discovered new exit (range 12) 7006 | -7/Factory | Fabricated Adv. Hacking Suite? 7139 | -7/Factory | Fabricated Adv. Hacking Suite (x1) 7152 | -7/Factory | Local fabrication network quarantined 7175 | -7/Factory | Fabricated Adv. Hacking Suite (x1) 7295 | -7/Factory | Entered Lower Caves 7407 | -7/Lower Caves | Learned location of Zion (-7) 7594 | -7/Lower Caves | Identified exit to Lower Caves 7598 | -7/Lower Caves | Learned Factory garrison access intel 7614 | -7/Lower Caves | Attracted the attention of an 0b10 outpost 7880 | -7/Lower Caves | A Derelict revealed a hidden shortcut to a safe place 7887 | -7/Lower Caves | Identified exit to Zion 7956 | -7/Lower Caves | Entered Zion 7956 | -7/Zion | Accompanied by 1 ally 7990 | -7/Zion | Learned Factory stockpile data 8147 | -7/Zion | Learned Factory emergency access door positions 8351 | -7/Zion | Discovered new exit (range 15) 8380 | -7/Zion | Given the Hacking Drone Bay 8380 | -7/Zion | Found Prototype Device 8531 | -7/Zion | Learned location of Quarantine (-3) 8569 | -7/Zion | Found CR-A16's Pointy Stick 8666 | -7/Zion | Learned Factory emergency access door positions 9041 | -7/Zion | Found Prototype Hackware 9041 | -7/Zion | Identified Exp. Hacking Suite 9048 | -7/Zion | Found Prototype Processor 9052 | -7/Zion | Found Prototype Processor 9057 | -7/Zion | Found Prototype Processor 9311 | -7/Zion | Identified exit to Proximity Caves 9315 | -7/Zion | Entered Proximity Caves 9315 | -6/Proximity Caves | Accompanied by 1 ally 9317 | -6/Proximity Caves | Attracted the attention of an 0b10 checkpoint 9411 | -6/Proximity Caves | Spotted B-75 Beast 9479 | -6/Proximity Caves | P-60 Hacker assimilated allied Trooper 4a 9707 | -6/Proximity Caves | Learned location of 1 exit from Factory 9789 | -6/Proximity Caves | Learned Factory stockpile data 9798 | -6/Proximity Caves | Build established: Hacker-Skirmisher 9815 | -6/Proximity Caves | Discovered new exit (range 11) 9833 | -6/Proximity Caves | Identified exit to Factory 9834 | -6/Proximity Caves | Entered Factory 9834 | -6/Factory | Evolved 2 slots: Utility x2 9835 | -6/Factory | Identified exit to Extension 9838 | -6/Factory | Loaded intel: 4 garrison access locations 9940 | -6/Factory | Discovered new exit (range 22) 10018 | -6/Factory | Identified Exp. Targeting Computer 10074 | -6/Factory | Identified Exp. Target Analyzer (x2) 10170 | -6/Factory | Found Prototype Processor 10170 | -6/Factory | Identified Exp. Signal Interpreter 10174 | -6/Factory | Found Exp. Signal Interpreter 10345 | -6/Factory | Build established: Hacker-Mutant 10613 | -6/Factory | Identified exit to Lower Caves 10901 | -6/Factory | Lost 3 parts (2u1w) 11139 | -6/Factory | Identified exit to Factory 11410 | -6/Factory | Repaired Arm. Huge Wheel? 11504 | -6/Factory | Repaired Imp. Medium Armor Plating 11830 | -6/Factory | Entered Lower Caves 11936 | -6/Lower Caves | Build established: Hacker-Skirmisher 12000 | -6/Lower Caves | Attacked by a delusional Derelict stockpiling Unaware 12240 | -6/Lower Caves | Learned Factory emergency access door positions 12266 | -6/Lower Caves | Attacked by a faux Warlord 12311 | -6/Lower Caves | Lost 4 parts (1p1u2w) 12550 | -6/Lower Caves | Discovered new exit (range 10) 12699 | -6/Lower Caves | Learned location of 1 exit from Factory 12705 | -6/Lower Caves | Identified exit to Lower Caves 12710 | -6/Lower Caves | Entered another Lower Caves area 12734 | -6/Lower Caves | Learned Factory non-interactive machine intel 13065 | -6/Lower Caves | Spotted B-75 Beast 13270 | -6/Lower Caves | Encountered a Warlord checkpoint 13311 | -6/Lower Caves | Discovered new exit (range 10) 13322 | -6/Lower Caves | Identified exit to Data Miner 13406 | -6/Lower Caves | Build established: Hacker-Mutant 13426 | -6/Lower Caves | Entered Data Miner 13427 | -6/Data Miner | Discovered new exit (range 7) 13443 | -6/Data Miner | Met Data Miner 13485 | -6/Data Miner | Learned location of Section 7 (-3) 13485 | -6/Data Miner | Acquired the access code to Warlord's prototype stash 13496 | -6/Data Miner | Received God Mode back door access code from Data Miner 13544 | -6/Data Miner | Identified exit to Proximity Caves 13549 | -6/Data Miner | Entered Proximity Caves 13644 | -5/Proximity Caves | Escorted by Enhanced Grunt 14272 | -5/Proximity Caves | Build established: Hacker-Skirmisher 14371 | -5/Proximity Caves | Discovered exit to Factory (range 6) 14387 | -5/Proximity Caves | Learned Factory stockpile data 14474 | -5/Proximity Caves | Entered Factory 14474 | -5/Factory | Evolved 2 slots: Utility x2 14475 | -5/Factory | Identified exit to Factory 14478 | -5/Factory | Loaded intel: 233 non-interactive machine locations 15091 | -5/Factory | Fabricated Exp. Sensor Array? 15364 | -5/Factory | Fabricated Exp. Sensor Array? 15384 | -5/Factory | Local fabrication network quarantined 15615 | -5/Factory | Repaired Arm. Huge Wheel? 15731 | -5/Factory | Lost 4 parts (2u2w) 16138 | -5/Factory | Build established: Hacker-Mutant 16196 | -5/Factory | Discovered exit to Factory (range 5) 16560 | -5/Factory | Lost 6 parts (1n4u1w) 16587 | -5/Factory | Build established: Hacker-Skirmisher 16710 | -5/Factory | Discovered new exit (range 11) 16767 | -5/Factory | Identified exit to Upper Caves 16874 | -5/Factory | Entered Upper Caves 16910 | -5/Upper Caves | Encountered a Warlord checkpoint 17130 | -5/Upper Caves | Discovered new exit (range 16) 17148 | -5/Upper Caves | Identified exit to Upper Caves 17150 | -5/Upper Caves | Entered another Upper Caves area 17151 | -5/Upper Caves | Encountered a Warlord checkpoint 17158 | -5/Upper Caves | Build established: Hacker-Assassin 17758 | -5/Upper Caves | Learned location of 1 exit from Proximity Caves 17811 | -5/Upper Caves | Spotted B-75 Beast 18018 | -5/Upper Caves | Discovered new exit (range 9) 18030 | -5/Upper Caves | Identified exit to Warlord 18031 | -5/Upper Caves | Entered Warlord 18071 | -5/Warlord | System corruption cleaned by Quarantine Array 18251 | -5/Warlord | Met Warlord 18274 | -5/Warlord | Opened Warlord's prototype stash 18276 | -5/Warlord | Warlord's base attacked by MAIN.C 18279 | -5/Warlord | Found Prototype Device 18279 | -5/Warlord | Identified Thermal Barrier 18288 | -5/Warlord | Found Prototype Hackware 18294 | -5/Warlord | Found Prototype Device 18294 | -5/Warlord | Identified Exp. Phase Shifter 18482 | -5/Warlord | Found Prototype Energy Gun 18484 | -5/Warlord | Found Prototype Energy Gun 18626 | -5/Warlord | Warlord forces counterattacked 18632 | -5/Warlord | Learned 4 Access zone layouts 18633 | -5/Warlord | Learned Factory garrison access intel 18633 | -5/Warlord | Learned Research recycling unit intel 18685 | -5/Warlord | Spotted Executioner 18692 | -5/Warlord | Spotted Striker 18701 | -5/Warlord | Spotted B-86 Titan 18705 | -5/Warlord | Spotted Striker 18766 | -5/Warlord | Discovered new exit (range 12) 18777 | -5/Warlord | Identified exit to Proximity Caves 18793 | -5/Warlord | Entered Proximity Caves 18793 | -4/Proximity Caves | Accompanied by 4 allies 18992 | -4/Proximity Caves | Build established: Hacker-Mutant 19098 | -4/Proximity Caves | Learned Research emergency access door positions 19111 | -4/Proximity Caves | Entered Factory 19111 | -4/Factory | Evolved 2 slots: Utility x2 19114 | -4/Factory | Loaded intel: 4 garrison access locations 19116 | -4/Factory | Identified Ghost Barrier 19131 | -4/Factory | Identified Vortex Rail (x2) 19175 | -4/Factory | Garrison activated, responded to threat 19200 | -4/Factory | Exp. Hacking Suite fried by hacking feedback 19221 | -4/Factory | Incoming investigation squad redirected 19454 | -4/Factory | Lost 6 parts (5u1w) 19492 | -4/Factory | Spotted B-86 Titan 19662 | -4/Factory | Core integrity fell below 50% 19670 | -4/Factory | Core integrity fell below 20% 19675 | -4/Factory | Destroyed by P-70 Sage with High-powered Shock Rifle Last Messages --------------- 19646_ Dropped Hcp. Storage Unit. 19646_ Dropped Med. Storage Unit. 19647_ B-86 Titan activates siege mode. 19647_ Dropped Hrd. Heavy Armor Plating. 19649_ Lyr. Medium Armor Plating destroyed. 19649_ Knocked back. 19649_ Penetrated by Slug. 19649_ Slug penetrates Repair Station. 19652_ Adv. Hacking Suite destroyed. 19652_ Knocked back. 19652_ Penetrated by Slug. 19655_ Slug penetrates Repair Station. 19656_ U-05 Engineer builds a Wall. 19661_ Knocked back. 19671_ B-86 Titan exits siege mode. 19671_ Knocked back. 19671_ Penetrated by Slug. 19672_ U-05 Engineer lays Concrete. 19672_ Adv. Cooling System destroyed. [Achievement: I Think I Know What's Going On] Map ----- +----------------------------------------------------+ | ???#??##" = ]# #?????????????????????? | | ??????####"""""# #?????????????????????? | | ??????# # #?????????????????????? | | ??????# | # #?????????????????????? | | ??????# # ########??????????????? | | ??????# #?] ???????????????? | | ??????# # ???#??????????????? | | ??????# + """ """ #??????????????? | | ??????# # """ """ ^ #??????????????? | | ??????# ! # """ """ #??????????????? | | ??????# # ? ##??????????????? | | ########+####### """ """ #???????????????? | | # # ####### """ """ +???????????????? | | # + """ """ #???????????????? | | # # #???????????????? | | # # """ """ """ #????????????????? | | ?####### "Y" """ """ #????????????????? | | ?#####"# " " """ """ #????????????????? | | ?# ## #????????????????? | | ?#"" ## #????????????????? | | ?#"Y ## ! ##############???? | | ?#"" ## " "" ??? | | ?# ## " "R"" ??? | | ?# ## """"" ""!! ??? | | ?# = ## """"" p[!![ ?? | | ?# ## p*[@ u ?? | | ?#! ## """ !;BB#######+######+??????? | | ?####+## """"" ###BB#????????????????????? | | ????# """"" #??###????????????????????? | | ????# #?????????????????????????? | | ????# """ ########??????????????????? | | ????# """"" # #??????????????????? | | ????# """"" # !!! #??????????????????? | | ????# # !!! #??????????????????? | | ????# + !!! #??????????????????? | | ?#######+###### # #??????????????????? | | # ] # # ] #??????????????????? | | # ! [ ##############??????????????????? | | # """ #???????????????????????????????? | | # """ "" """ #???????????????????????????????? | | # """ ""F""" #???????????????????????????????? | | # """"" #???????????????????????????????? | | ###############???????????????????????????????? | | | | | | | | | | | | | | | +----------------------------------------------------+ Best States ------------- Heat Dissipation 109 Energy Generation 19 Energy Capacity 315 Matter Stores 397 Matter Capacity 450 Sight Range 23 Robot Scan Range 30 Terrain Scan Range 16 Terrain Scan Density 110 Armor Coverage 825 Resistance: TH 50 Resistance: EM 15 Utility Shielding 66 Phase Shifting 20 Evasion (%) 60 Target Analysis 12 Recoil Reduction 2 Offensive Hacking 44 Defensive Hacking 31 Item Schematics ----------------- Exp. Sensor Array | -9/Materials | Scanalyzed Arm. Wheel | -9/Storage | Hacked Hacking Suite | -7/Factory | Scanalyzed Hcp. Storage Unit | -7/Factory | Hacked Arm. Huge Wheel | -7/Factory | Hacked Adv. Hacking Suite | -7/Factory | Hacked Exp. Target Analyzer | -6/Factory | Scanalyzed Exp. Targeting Computer | -6/Factory | Scanalyzed Imp. Utility Shielding | -6/Factory | Scanalyzed Combat Drone Bay | -6/Data Miner | Free Lgt. Regenerative Plating | -6/Data Miner | Free Exp. Flexi-carbon Leg | -6/Data Miner | Free Cmb. Gravmag System | -6/Data Miner | Free Mni. Smartbomb Launcher | -6/Data Miner | Free Prc. Beam Rifle | -5/Factory | Hacked Exp. Utility Shielding | -5/Factory | Hacked Robot Schematics ------------------ O-24 Administrator | -6/Factory | Hacked S-27 Virus | -6/Data Miner | Free G-50 Soldier | -6/Data Miner | Free G-67 Veteran | -6/Data Miner | Free H-66 Slayer | -6/Data Miner | Free P-70 Sage | -6/Data Miner | Free I-36 Angel | -6/Data Miner | Free Fabricated ------------ Adv. Hacking Suite | x1 | -7/Factory Adv. Hacking Suite | x1 | -7/Factory Adv. Hacking Suite | x1 | -7/Factory Exp. Sensor Array | x1 | -5/Factory Exp. Sensor Array | x1 | -5/Factory Alien Tech Used ----------------- None Achievements -------------- I Think I Know What's Going On Challenges ------------ None Game ------ Seed AlphaRecyclingDrive Manual? 0 Play Time 07:24:18 Cumulative 70.2 hours Start 2021.10.25 @ 11:44:47 End 2021.10.29 @ 15:07:46 Sessions 5 Manual Loads 0 Difficulty Rogue Special Mode None Game No. 10 Rogue 10 Adventurer 0 Explorer 0 Win Type - Total 2 Types 2/0/0/0/0/0/0/0/0 Lore% 51 Gallery% 48 Achievement% 45 Wizard Run 0 Options --------- ASCII 0 Keyboard 0 Movement Vi Keybinds 0 Fullscreen 1 Font 36/Smallcaps Map View 76x50 Tactical HUD 1 Map Filters NONE Filters NONE Steam 1 RUN: f6c7449f-9efb-4e6e-bc01-aca8ef2f4336